bitfinex/quotes_ETHUSD_20220212
["timestamp","ask_amount","ask_price","bid_price","bid_amount"]
[1644700887764,1.1691,2955.1,2954.2,0.0028489]
[1644700887765,0.79745281,2954.9,2954.2,0.0028489]
[1644700887967,0.79745281,2954.9,2954.6,0.00985719]
[1644700888368,3.49682904,2955.2,2954.6,0.00985719]
[1644700888870,3.49682904,2955.2,2953.8,0.1719489]
[1644700888871,1.0,2955.1,2953.8,0.1719489]
[1644700889068,3.78498407,2955.0,2953.8,0.0028489]
[1644700889269,3.78498407,2955.0,2954.8,0.00985691]
[1644700889469,3.63669259,2955.0,2954.8,0.00985691]
[1644700890074,3.63669259,2955.0,2953.8,0.0028489]
[1644700890075,1.83461593,2954.9,2953.8,0.0028489]
[1644700890278,4.84469523,2954.8,2953.8,0.0028489]
[1644700890475,6.47269523,2954.8,2954.3,0.0217921]
[1644700890671,6.6,2954.3,2953.8,0.0028489]
[1644700890871,6.6,2954.3,2953.6,0.007]
[1644700890872,1.6541,2954.2,2953.6,0.007]
[1644700891071,1.9541,2954.2,2953.6,0.007]
[1644700891276,4.22683535,2954.1,2953.6,0.007]
[1644700891526,0.6541,2954.0,2953.6,0.007]
[1644700891720,1.9541,2954.0,2953.6,0.007]
[1644700892519,3.91887602,2953.9,2953.6,0.007]
[1644700892724,0.9541,2953.8,2953.6,0.007]
[1644700892923,3.52620481,2953.7,2953.6,0.007]
[1644700893120,3.69530481,2953.7,2953.6,0.007]
[1644700893322,1.0,2953.7,2953.6,0.007]
[1644700893723,3.32773348,2953.7,2953.6,0.007]
[1644700893922,1.0,2953.7,2953.6,0.007]
[1644700894125,1.3259,2954.2,2953.6,0.007]
[1644700894323,1.1568,2954.2,2953.6,0.007]
[1644700894922,4.49703716,2954.2,2953.6,0.007]
[1644700895490,1.1568,2954.2,2953.6,0.007]
[1644700895689,1.0,2954.1,2953.6,0.007]
[1644700895888,3.50989166,2954.2,2953.6,0.007]
[1644700896094,3.50989166,2954.2,2953.8,0.01793341]
[1644700896492,6.84498781,2954.2,2953.8,0.01793341]
[1644700896892,6.79498781,2954.2,2953.8,0.01793341]
[1644700897494,1.1568,2954.2,2953.8,0.01793341]
[1644700898496,1.1568,2954.2,2953.3,0.70907733]
[1644700898695,0.1691,2954.6,2953.9,0.00986433]
[1644700898696,0.00986234,2954.4,2953.9,0.00986433]
[1644700899713,0.66305271,2955.0,2953.6,0.0028489]
[1644700899913,0.00883808,2954.4,2954.0,0.00883941]
[1644700901019,0.1691,2955.0,2953.9,0.0028489]
[1644700901218,0.00883815,2954.4,2954.1,0.00883933]
[1644700902017,0.00883815,2954.4,2954.0,0.0178769]
[1644700902218,0.89612735,2954.8,2954.0,0.0178769]
[1644700902418,0.00883822,2954.4,2954.1,0.00883925]
[1644700903277,3.50098015,2955.0,2954.0,0.0178769]
[1644700903472,3.33188015,2955.0,2954.0,0.0178769]
[1644700903673,0.00881821,2954.4,2954.1,0.00881924]
[1644700904470,3.5,2955.0,2954.0,0.0178769]
[1644700904872,0.00886718,2954.4,2954.1,0.00886822]
[1644700905070,0.00886718,2954.4,2953.8,0.0028489]
[1644700905071,0.97325488,2954.0,2953.8,0.0028489]
[1644700905272,0.97325488,2954.0,2953.7,2.15773222]
[1644700905670,0.97325488,2954.0,2953.7,1.31153222]
[1644700905873,0.97325488,2954.0,2953.7,0.6]
[1644700906075,0.97325488,2954.0,2953.7,0.3]
[1644700906274,0.97325488,2954.0,2953.5,1.3028489]
[1644700906275,0.97325488,2954.0,2953.5,0.0028489]
[1644700906520,0.97325488,2954.0,2953.5,0.3]
[1644700906719,0.97325488,2954.0,2953.5,0.0028489]
[1644700906918,0.97325488,2954.0,2953.4,2.85868503]
[1644700907319,0.97325488,2954.0,2953.5,1.0]
[1644700907519,0.97325488,2954.0,2953.5,1.0028489]
[1644700907819,0.97325488,2954.0,2953.5,0.0028489]
[1644700908019,0.97325488,2954.0,2953.4,2.85868503]
[1644700908221,0.97325488,2954.0,2953.5,0.1692]
[1644700908422,0.97325488,2954.0,2953.6,0.0093323]
[1644700908622,0.97325488,2954.0,2953.7,0.1691]
[1644700908822,0.97325488,2954.0,2953.6,0.0093323]
[1644700909323,0.97325488,2954.0,2953.3,1.4491489]
[1644700909521,0.97325488,2954.0,2953.3,0.6028489]
[1644700909720,0.97325488,2954.0,2953.7,0.00933221]
[1644700909921,0.29325488,2954.0,2953.7,0.00933221]
[1644700910565,0.29325488,2954.0,2953.3,0.0028489]
[1644700910969,0.29325488,2954.0,2953.7,0.00932033]
[1644700911770,0.29325488,2954.0,2953.3,1.0028489]
[1644700911969,0.29325488,2954.0,2953.7,0.00932033]
[1644700912572,0.24325488,2954.0,2953.7,0.00932033]
[1644700912972,0.24325488,2954.0,2953.5,0.0028489]
[1644700913271,0.24325488,2954.0,2953.7,0.00932033]
[1644700914115,0.24325488,2954.0,2953.3,1.1719489]
[1644700914317,0.24325488,2954.0,2953.7,0.00932112]
[1644700915317,0.24325488,2954.0,2953.3,0.1719489]
[1644700915517,0.24325488,2954.0,2953.7,0.00932112]
[1644700916124,0.1691,2953.9,2953.7,0.00932112]
[1644700916321,3.63818967,2953.9,2953.7,0.00932112]
[1644700916523,3.63818967,2953.9,2953.3,0.1719489]
[1644700916524,4.49650242,2953.9,2953.3,0.1719489]
[1644700916723,3.63818967,2953.9,2953.7,0.00932122]
[1644700917023,0.24325488,2954.0,2953.7,0.00932122]
[1644700917024,3.49111745,2954.0,2953.7,0.00932122]
[1644700917222,0.1691,2954.1,2952.9,3.2247]
[1644700917423,5.53874083,2954.2,2952.9,3.0556]
[1644700918978,0.86732368,2953.8,2952.9,3.0556]
[1644700919176,0.86732368,2953.8,2952.8,0.13097456]
[1644700919376,0.86732368,2953.8,2952.8,0.14072368]
[1644700920382,0.86732368,2953.8,2953.1,0.00543132]
[1644700921381,0.86732368,2953.8,2952.8,0.14072368]
[1644700921638,0.00987019,2953.6,2953.1,0.00987201]
[1644700922634,3.25963989,2953.7,2952.8,0.14072368]
[1644700922834,0.86732368,2953.8,2953.1,0.00987186]
[1644700922835,0.00987037,2953.5,2953.1,0.00987186]
[1644700923740,0.86732368,2953.8,2952.8,0.14072368]
[1644700923934,0.00987046,2953.4,2953.1,0.00987178]
[1644700925035,0.86732368,2953.8,2952.8,0.00974912]
[1644700925266,3.33367297,2953.7,2952.8,0.00974912]
[1644700925665,3.26304347,2953.7,2952.8,0.00974912]
[1644700925865,0.86732368,2953.8,2952.8,0.00974912]
[1644700926066,3.32387278,2953.7,2952.8,0.00974912]
[1644700926669,0.86732368,2953.8,2952.8,0.00974912]
[1644700928572,3.3026018,2953.7,2952.8,0.00974912]
[1644700928775,0.00987734,2953.4,2953.1,0.00987866]
[1644700929812,3.44702262,2953.5,2952.8,0.00974912]
[1644700930013,0.80534512,2953.3,2953.1,0.00924932]
[1644700930212,0.00924824,2953.4,2953.1,0.00924932]
[1644700931017,3.44702262,2953.5,2952.8,0.00974912]
[1644700931220,0.17854824,2953.4,2953.1,0.00924932]
[1644700931426,1.17854824,2953.4,2953.1,0.00924932]
[1644700931620,4.188125,2953.3,2953.1,0.00924932]
[1644700931819,3.35074869,2953.2,2953.1,0.00924932]
[1644700932219,3.99273501,2953.2,2952.8,0.00974912]
[1644700932419,0.485,2953.1,2953.0,0.00924932]
[1644700932618,3.85639107,2953.1,2953.0,0.00924932]
[1644700933270,3.85639107,2953.1,2952.8,0.00974912]
[1644700933668,3.85639107,2953.1,2952.9,0.00924948]
[1644700933870,3.2722373,2953.0,2952.9,0.00924948]
[1644700934573,3.2722373,2953.0,2952.8,0.00974912]
[1644700934773,0.1693,2952.9,2952.8,0.00974912]
[1644700934973,0.1693,2952.9,2952.8,0.01904124]
[1644700935171,0.6543,2952.9,2952.8,0.01904124]
[1644700935372,5.24498627,2952.9,2952.8,0.01904124]
[1644700935573,5.54498627,2952.9,2952.8,0.01904124]
[1644700935771,5.24498627,2952.9,2952.8,0.00974912]
[1644700936521,5.84498627,2952.9,2952.8,0.00974912]
[1644700936918,6.6097,2952.8,2951.9,0.00278283]
[1644700937117,6.6,2952.6,2951.7,1.93023903]
[1644700937317,0.74732031,2952.4,2952.3,0.03717473]
[1644700937516,4.76512535,2952.4,2952.3,0.03717473]
[1644700937721,2.47942031,2952.4,2952.3,0.03717473]
[1644700938116,1.7321,2952.4,2952.3,0.03717473]
[1644700938320,1.7321,2952.4,2951.8,0.84953322]
[1644700938321,1.2471,2952.4,2951.8,0.84953322]
[1644700938516,4.6693,2953.1,2951.8,0.84953322]
[1644700938718,4.8531,2953.1,2951.8,1.44953322]
[1644700939617,1.3531,2953.1,2951.9,4.16583079]
[1644700939917,1.3531,2953.1,2952.0,0.00278322]
[1644700939918,1.1838,2953.1,2952.0,0.00278322]
[1644700940767,1.1838,2953.1,2952.4,0.0098797]
[1644700940768,1.19367732,2953.1,2952.4,0.0098797]
[1644700941571,1.36297732,2953.1,2952.4,0.0098797]
[1644700941771,1.1838,2953.1,2952.1,3.19901719]
[1644700942073,1.19367763,2953.1,2952.6,0.0098795]
[1644700942672,2.49367763,2953.1,2952.6,0.0098795]
[1644700942872,4.2368143,2953.0,2952.6,0.0098795]
[1644700943072,0.485,2952.9,2951.8,0.25]
[1644700943270,0.87218808,2952.3,2951.8,0.2895285]
[1644700943472,0.87218808,2952.3,2951.8,0.0395285]
[1644700944116,0.87218808,2952.3,2951.7,1.35522729]
[1644700944315,1.0,2952.6,2951.7,1.35522729]
[1644700944621,1.637,2952.7,2951.9,0.00988061]
[1644700944816,2.237,2952.7,2951.9,0.00988061]
[1644700945418,0.66347233,2952.4,2951.7,1.35522729]
[1644700945616,0.66347233,2952.4,2952.2,0.00988016]
[1644700946219,0.1693,2952.6,2952.2,0.00988016]
[1644700946518,1.152,2952.7,2951.7,1.35522729]
[1644700946920,1.152,2952.7,2952.3,0.00987997]
[1644700947765,1.152,2952.7,2951.8,3.5]
[1644700947963,1.152,2952.7,2952.4,0.00987979]
[1644700948964,1.152,2952.7,2951.7,4.85522729]
[1644700949167,1.152,2952.7,2952.4,0.0098797]
[1644700950166,0.83539744,2952.6,2951.8,3.23144654]
[1644700950366,0.83539744,2952.6,2952.4,0.0098797]
[1644700950567,1.152,2952.7,2952.4,0.0098797]
[1644700951368,1.152,2952.7,2951.7,1.35522729]
[1644700951625,1.152,2952.7,2952.4,0.0098797]
[1644700951824,0.80103843,2952.6,2952.4,0.0098797]
[1644700952528,0.80103843,2952.6,2951.7,1.35522729]
[1644700952724,0.1693,2952.5,2951.8,0.00278033]
[1644700952924,0.1693,2952.5,2952.4,0.00987979]
[1644700953724,0.1693,2952.5,2951.8,0.03952637]
[1644700953926,0.1693,2952.5,2951.7,0.00283283]
[1644700954124,0.1693,2952.5,2952.3,0.00987988]
[1644700954929,0.1693,2952.5,2951.7,0.00283283]
[1644700956166,2.40103843,2952.6,2951.7,0.00283283]
[1644700956365,2.40103843,2952.6,2952.0,0.00988052]
[1644700956569,0.78063408,2952.1,2952.0,0.00988052]
[1644700957369,0.1693,2952.5,2951.7,0.00283283]
[1644700957572,0.1693,2952.5,2951.9,0.00988061]
[1644700957969,1.637,2952.7,2951.9,0.00988061]
[1644700957970,1.1693,2952.6,2951.9,0.00988061]
[1644700958169,0.1693,2952.6,2951.9,0.00988061]
[1644700958369,1.1693,2952.6,2951.9,0.00988061]
[1644700958571,0.7026497,2952.4,2951.7,0.00283283]
[1644700958770,0.1693,2952.3,2951.7,0.00283283]
[1644700959029,0.7026497,2952.4,2952.1,0.00988025]
[1644700959217,0.7026497,2952.4,2951.7,0.00283283]
[1644700959420,0.7026497,2952.4,2951.6,0.00224083]
[1644700959819,0.7026497,2952.4,2951.2,0.00278033]
[1644700960921,1.1504,2952.3,2951.2,0.00278033]
[1644700961322,0.00988008,2951.9,2951.5,0.00988174]
[1644700962126,1.1504,2952.3,2951.2,0.00278033]
[1644700962327,1.3197,2952.3,2951.2,0.00278033]
[1644700962527,0.00988026,2951.8,2951.5,0.00988158]
[1644700963172,6.6,2951.6,2950.3,1.0]
[1644700963371,10.1,2951.5,2950.2,4.2811]
[1644700963566,6.057,2951.2,2950.1,0.30289602]
[1644700963768,6.057,2951.2,2949.7,8.52695078]
[1644700963769,3.5,2951.1,2949.7,8.52695078]
[1644700963972,3.5,2951.1,2949.1,3.229959]
[1644700963973,11.6,2950.7,2949.1,0.135659]
[1644700964174,11.6,2950.7,2948.4,1.23943584]
[1644700964175,5.0,2949.9,2948.4,1.23943584]
[1644700964367,9.557,2949.8,2948.9,0.01184889]
[1644700964569,5.0,2949.2,2948.0,0.25]
[1644700964766,10.585,2949.1,2947.8,0.1]
[1644700964967,10.585,2949.1,2947.2,0.25]
[1644700964968,5.0,2948.9,2947.2,0.25]
[1644700965169,12.657,2949.0,2947.2,0.25]
[1644700965170,0.3324,2948.0,2947.2,0.25]
[1644700965366,0.3324,2948.0,2946.9,0.00241304]
[1644700965369,1.128,2948.0,2946.9,0.00241304]
[1644700965569,0.485,2947.9,2946.9,0.00241304]
[1644700965765,0.485,2947.9,2946.5,0.03934064]
[1644700965965,0.485,2947.9,2946.2,0.17209129]
[1644700965966,0.435,2947.9,2946.2,0.17209129]
[1644700966169,0.7002,2948.1,2947.4,0.88794682]
[1644700966170,0.3992,2948.1,2947.4,0.88794682]
[1644700966381,1.1696,2948.6,2947.3,0.00988654]
[1644700966627,1.1696,2948.6,2947.5,0.17209129]
[1644700966827,1.2152,2948.7,2947.6,0.485]
[1644700967025,1.2152,2948.7,2946.9,0.00965216]
[1644700967026,3.6696,2948.6,2946.9,0.00965216]
[1644700967225,4.1546,2948.6,2947.0,0.01238059]
[1644700967528,1.2152,2948.7,2947.0,0.01238059]
[1644700967529,1.2152,2948.7,2947.0,1.43966125]
[1644700967729,1.2152,2948.7,2947.1,0.485]
[1644700967928,3.6696,2948.6,2947.1,0.485]
[1644700968139,3.94599993,2949.2,2947.1,5.485]
[1644700968330,3.94599993,2949.2,2947.1,0.735]
[1644700968526,4.95739993,2949.2,2948.8,0.76020412]
[1644700968728,4.95739993,2949.2,2948.1,0.485]
[1644700968729,0.77887055,2948.6,2948.1,0.485]
[1644700969729,0.77887055,2948.6,2948.4,0.76545316]
[1644700970372,0.77887055,2948.6,2948.2,0.00984927]
[1644700970579,0.77887055,2948.6,2948.1,0.485]
[1644700970787,0.77887055,2948.6,2948.3,0.485]
[1644700970978,0.77887055,2948.6,2947.6,0.6589746]
[1644700970979,0.77887055,2948.6,2948.4,0.485]
[1644700971183,0.77887055,2948.6,2948.5,0.485]
[1644700973582,0.77887055,2948.6,2948.2,0.1695]
[1644700973782,3.51364406,2948.5,2947.5,0.1695]
[1644700974028,3.5,2948.5,2947.4,0.1696]
[1644700974228,3.5,2948.5,2947.1,0.1696]
[1644700974229,0.1696,2948.4,2947.1,0.1696]
[1644700974431,0.1696,2948.4,2947.9,0.00977782]
[1644700974830,0.77887055,2948.6,2947.9,0.00977782]
[1644700974831,0.1695,2948.5,2947.9,0.00977782]
[1644700975330,1.1695,2948.5,2947.2,0.25]
[1644700975529,3.5,2948.4,2947.2,0.25]
[1644700975731,0.1696,2948.3,2947.2,0.25]
[1644700975937,4.10099353,2948.6,2947.2,0.25]
[1644700976131,4.10099353,2948.6,2947.7,0.67433411]
[1644700976132,0.77887055,2948.6,2947.7,0.67433411]
[1644700976332,0.77887055,2948.6,2947.2,0.25]
[1644700976333,0.77887055,2948.6,2947.2,0.735]
[1644700976533,3.61561542,2948.5,2947.2,0.735]
[1644700976733,3.61561542,2948.5,2947.2,1.335]
[1644700977133,3.61561542,2948.5,2947.2,0.735]
[1644700977333,3.61561542,2948.5,2947.2,0.685]
[1644700977633,3.61561542,2948.5,2947.2,1.38315505]
[1644700978669,3.61561542,2948.5,2947.3,0.00271701]
[1644700979271,3.61561542,2948.5,2947.8,0.00981349]
[1644700979272,1.0,2948.4,2947.8,0.00981349]
[1644700979473,4.36138214,2948.3,2947.8,0.00981349]
[1644700979873,1.0,2948.2,2947.8,0.00981349]
[1644700980076,3.70727942,2948.1,2947.8,0.00981349]
[1644700980274,3.70727942,2948.1,2947.3,0.00271701]
[1644700980477,1.0,2948.0,2947.9,0.00981331]
[1644700980876,1.1696,2948.4,2947.9,0.00981331]
[1644700981079,0.1696,2948.4,2947.9,0.00981331]
[1644700981524,3.6695,2948.5,2947.3,0.00271701]
[1644700981725,3.6695,2948.5,2948.0,0.00981304]
[1644700981726,0.1696,2948.3,2948.0,0.00981304]
[1644700981925,1.77887055,2948.6,2948.0,0.00981304]
[1644700981926,0.1695,2948.4,2948.0,0.00981304]
[1644700982125,0.1695,2948.5,2948.0,0.00981304]
[1644700982826,0.1695,2948.5,2947.3,0.17221701]
[1644700982827,0.1695,2948.5,2948.1,0.00981286]
[1644700983028,0.94847055,2948.6,2948.1,0.00981286]
[1644700983829,0.94847055,2948.6,2947.9,0.51001736]
[1644700984031,0.77887055,2948.6,2947.9,0.81001736]
[1644700984229,0.77887055,2948.6,2948.2,0.00981268]
[1644700984429,0.77887055,2948.6,2948.3,0.485]
[1644700984630,0.77887055,2948.6,2948.4,0.55419478]
[1644700984830,0.77887055,2948.6,2948.2,0.00981268]
[1644700985029,0.77887055,2948.6,2947.9,0.485]
[1644700985674,0.77887055,2948.6,2947.5,1.085]
[1644700985973,0.77887055,2948.6,2947.9,0.50814211]
[1644700986179,0.77887055,2948.6,2948.4,0.68361985]
[1644700988782,0.77887055,2948.6,2947.7,1.69547]
[1644700988783,0.20106564,2947.8,2947.7,1.69547]
[1644700989023,0.20106564,2947.8,2947.7,2.60673941]
[1644700989226,0.20106564,2947.8,2947.7,0.91126941]
[1644700989424,0.20106564,2947.8,2947.7,1.91126941]
[1644700989625,0.20106564,2947.8,2947.7,1.39626941]
[1644700990025,0.20106564,2947.8,2947.7,1.09626941]
[1644700990828,0.20106564,2947.8,2947.7,0.61126941]
[1644700991029,1.1851,2949.3,2947.8,5.2]
[1644700991230,0.00980728,2949.5,2948.2,5.0]
[1644700991434,0.00980728,2949.5,2948.5,0.84751]
[1644700991630,0.00980728,2949.5,2948.2,1.0004]
[1644700991631,3.50980728,2949.5,2948.6,0.485]
[1644700991833,0.1695,2949.4,2947.8,3.2673]
[1644700992032,1.351,2949.4,2947.8,3.2673]
[1644700992231,3.5,2949.3,2947.8,3.2673]
[1644700992433,0.1695,2949.2,2947.8,3.7523]
[1644700992632,0.1695,2949.2,2948.0,0.0098139]
[1644700992874,1.1695,2949.2,2947.8,3.0771139]
[1644700993074,3.5,2949.1,2947.8,3.0771139]
[1644700993275,0.1695,2949.0,2947.8,3.0771139]
[1644700993473,0.1695,2949.0,2948.0,0.62688714]
[1644700994076,3.5,2949.3,2948.0,0.62688714]
[1644700994274,0.1695,2949.2,2948.0,0.62688714]
[1644700996076,0.00981126,2948.7,2948.0,0.62688714]
[1644700997022,0.1695,2949.0,2948.0,0.62688714]
[1644700997422,0.0098117,2948.5,2948.0,0.62688714]
[1644700997824,0.0098117,2948.5,2948.0,0.57688714]
[1644700998322,0.1695,2949.0,2948.0,0.57688714]
[1644700998522,0.00981188,2948.4,2948.0,0.57688714]
[1644700999523,3.76869602,2948.9,2948.0,0.57688714]
[1644700999723,0.00981197,2948.3,2948.0,0.57688714]
[1644700999922,0.00981197,2948.3,2948.1,0.00270787]
[1644701000124,0.00981197,2948.3,2948.0,0.57688714]
[1644701000580,0.1695,2948.8,2948.0,0.57688714]
[1644701000778,0.1695,2948.8,2948.1,0.00270787]
[1644701000978,0.00981206,2948.3,2948.1,0.00270787]
[1644701001178,0.00981206,2948.3,2948.0,0.57688714]
[1644701001780,3.46223653,2948.7,2948.0,0.57688714]
[1644701001981,0.1695,2948.8,2948.0,0.57688714]
[1644701002179,3.75854363,2949.0,2948.1,0.00270787]
[1644701002180,0.00981206,2948.3,2948.1,0.00270787]
[1644701002380,0.00981206,2948.3,2948.0,0.57688714]
[1644701003079,0.1695,2948.7,2948.0,0.57688714]
[1644701003282,0.00981206,2948.3,2948.0,0.57688714]
[1644701003480,0.00981206,2948.3,2948.1,0.00270787]
[1644701003680,0.00981206,2948.3,2947.9,0.00981354]
[1644701004322,3.79111931,2948.6,2947.8,0.00270787]
[1644701004530,0.00981215,2948.2,2947.9,0.00981346]
[1644701005526,0.1696,2948.4,2947.8,0.00270787]
[1644701005727,0.00981224,2948.2,2947.9,0.00981339]
[1644701005927,0.00981224,2948.2,2947.9,1.339e-05]
[1644701005928,1.44330992,2948.1,2947.9,1.339e-05]
[1644701006129,3.75268202,2948.0,2947.9,1.339e-05]
[1644701006331,5.19599194,2948.0,2947.9,1.339e-05]
[1644701006728,5.19599194,2948.0,2947.1,0.04197123]
[1644701006729,0.0008,2947.8,2947.1,0.00270787]
[1644701006929,0.0008,2947.8,2947.1,0.70888366]
[1644701007134,3.37183174,2947.8,2947.1,0.70617579]
[1644701007531,0.0008,2947.8,2947.1,0.70617579]
[1644701007779,0.0008,2947.8,2946.9,0.00965216]
[1644701007971,0.62964959,2947.6,2946.9,0.00965216]
[1644701008175,0.62964959,2947.6,2947.3,0.00981428]
[1644701008176,5.90807923,2947.5,2947.3,0.00981428]
[1644701008377,5.90807923,2947.5,2947.3,1.428e-05]
[1644701008378,6.43613783,2947.4,2947.3,1.428e-05]
[1644701008577,7.09073783,2947.4,2947.3,1.428e-05]
[1644701008779,7.09073783,2947.4,2946.3,0.14726228]
[1644701008780,0.3224784,2945.9,2945.0,0.83841769]
[1644701008976,0.3224784,2945.9,2945.2,3.0517]
[1644701008977,0.2224784,2945.9,2945.2,3.0517]
[1644701009177,0.2224784,2945.9,2945.3,0.48770833]
[1644701009377,0.2224784,2945.9,2945.4,0.485]
[1644701009576,0.2224784,2945.9,2945.4,0.435]
[1644701009978,0.2224784,2945.9,2945.4,1.28349]
[1644701010178,0.2224784,2945.9,2945.5,0.87115412]
[1644701010378,0.2224784,2945.9,2945.6,0.485]
[1644701010578,0.2224784,2945.9,2945.5,0.57115412]
[1644701010978,0.13761223,2945.9,2945.5,0.57115412]
[1644701011181,0.13761223,2945.9,2945.3,0.00270833]
[1644701011626,0.13761223,2945.9,2944.8,7.10720833]
[1644701011827,0.13761223,2945.9,2944.8,2.27800833]
[1644701012228,0.13761223,2945.9,2945.4,0.51530405]
[1644701012829,0.13761223,2945.9,2945.5,0.00981744]
[1644701013634,0.13761223,2945.9,2945.1,0.03927565]
[1644701013635,8.04423831,2945.8,2945.1,0.03927565]
[1644701013832,6.6,2945.6,2944.6,5e-05]
[1644701014031,6.6,2945.4,2944.2,0.15005]
[1644701014235,10.7,2945.4,2943.4,0.25]
[1644701014433,6.6548,2945.3,2943.4,0.25]
[1644701014632,3.5,2945.2,2944.0,0.51508747]
[1644701014832,3.6696,2945.5,2944.0,0.51508747]
[1644701015038,1.39423831,2945.3,2944.0,0.46508747]
[1644701015293,3.6696,2945.5,2944.0,0.46508747]
[1644701015686,3.6696,2945.5,2944.5,0.51371094]
[1644701015889,3.6696,2945.5,2944.6,3.5]
[1644701015890,0.1696,2945.5,2944.6,3.5]
[1644701016188,7.80121223,2945.9,2944.4,0.485]
[1644701016388,7.80121223,2945.9,2944.0,0.25]
[1644701016389,0.6546,2945.8,2944.0,0.25]
[1644701016588,0.485,2945.8,2944.0,1.25]
[1644701016791,7.80121223,2945.9,2945.6,0.02174509]
[1644701016989,7.80121223,2945.9,2944.1,3.5]
[1644701017192,7.97081223,2945.9,2944.2,1.0]
[1644701017387,7.97081223,2945.9,2944.9,0.62299992]
[1644701017590,4.10001223,2945.9,2944.9,0.62299992]
[1644701017790,3.93041223,2945.9,2944.9,0.63284916]
[1644701017989,0.13761223,2945.9,2944.9,0.63284916]
[1644701018589,0.13761223,2945.9,2944.9,0.58284916]
[1644701018789,0.13761223,2945.9,2944.2,3.5]
[1644701019033,0.13761223,2945.9,2943.5,1.73913491]
[1644701019034,0.6546,2945.8,2945.3,0.00984855]
[1644701019635,0.1696,2945.8,2945.3,0.00984855]
[1644701019835,0.1696,2945.8,2944.0,8.7797]
[1644701020038,0.1696,2945.8,2944.1,0.485]
[1644701020241,0.1696,2945.8,2944.6,0.53357062]
[1644701020441,0.1696,2945.8,2943.9,0.485]
[1644701020638,0.6546,2945.8,2943.8,3.2891]
[1644701020836,3.5,2945.7,2943.8,3.2891]
[1644701021038,0.1696,2945.6,2943.8,3.2891]
[1644701021341,1.1696,2945.6,2944.4,0.65689832]
[1644701021537,3.5,2945.5,2943.8,3.2891]
[1644701021936,0.1696,2945.8,2943.8,3.2891]
[1644701022137,1.0,2945.4,2943.8,3.2891]
[1644701022439,0.1696,2945.8,2944.7,0.00984321]
[1644701022440,4.2607059,2945.3,2944.7,0.00984321]
[1644701022637,4.32226245,2945.7,2944.7,0.00984321]
[1644701022878,1.0,2945.6,2944.7,0.00984321]
[1644701023075,3.95017902,2945.5,2944.7,0.00984321]
[1644701023479,3.95017902,2945.5,2943.8,3.2891]
[1644701023678,1.0,2945.4,2945.0,4.269e-05]
[1644701023879,3.90537844,2945.3,2945.0,4.269e-05]
[1644701024077,0.485,2945.2,2945.0,4.269e-05]
[1644701024276,0.1696,2945.1,2945.0,4.269e-05]
[1644701024476,0.1696,2945.1,2944.1,0.23941936]
[1644701024477,6.6,2945.0,2944.1,0.23941936]
[1644701024681,6.6,2945.0,2943.5,0.04149491]
[1644701024682,0.1698,2944.9,2943.7,0.50468849]
[1644701024882,4.6698,2944.9,2943.7,0.50468849]
[1644701026179,4.6698,2944.9,2943.5,0.04149491]
[1644701026381,4.6698,2944.9,2943.4,0.24149491]
[1644701026382,5.75,2944.7,2943.4,0.24149491]
[1644701026629,4.79755307,2944.6,2943.4,0.24149491]
[1644701026926,4.79755307,2944.6,2942.7,0.25]
[1644701027127,1.0,2944.5,2942.7,0.25]
[1644701027328,4.33017101,2944.4,2943.9,0.00984458]
[1644701027530,4.33017101,2944.4,2942.5,3.3466]
[1644701027531,4.33017101,2944.4,2942.5,3.2458288]
[1644701027825,1.0,2944.3,2942.8,0.0026388]
[1644701028030,3.90970467,2944.2,2942.6,0.0026388]
[1644701028228,3.90970467,2944.2,2943.2,0.65572955]
[1644701028427,3.90970467,2944.2,2943.3,0.0026388]
[1644701028630,0.1698,2944.2,2943.3,0.0026388]
[1644701028830,3.84586888,2944.5,2943.3,0.0026388]
[1644701029129,8.1972,2944.6,2943.3,0.0026388]
[1644701029130,8.367,2944.6,2943.3,0.0026388]
[1644701029328,8.367,2944.6,2943.4,0.485]
[1644701029329,4.4925,2944.6,2943.4,0.485]
[1644701029529,1.24,2944.6,2944.0,0.66503718]
[1644701029931,3.35122478,2945.0,2944.0,0.66503718]
[1644701030131,0.1698,2944.9,2944.1,0.0026388]
[1644701030579,0.1698,2944.9,2943.5,0.0026388]
[1644701030776,6.2571923,2945.3,2943.5,0.4876388]
[1644701030980,6.2571923,2945.3,2943.5,0.485]
[1644701030981,0.00484328,2944.6,2943.5,0.485]
[1644701031181,0.00484328,2944.6,2943.6,3.67473009]
[1644701031380,0.00484328,2944.6,2943.8,0.53608008]
[1644701031583,0.00484328,2944.6,2943.9,0.485]
[1644701031779,1.1347,2945.3,2943.9,0.485]
[1644701031980,1.1347,2945.3,2944.0,0.0026388]
[1644701032186,0.00983683,2944.4,2944.1,0.485]
[1644701032382,0.00983683,2944.4,2944.2,0.0026388]
[1644701032581,0.00983683,2944.4,2944.1,0.485]
[1644701032582,0.00983683,2944.4,2944.3,0.59438845]
[1644701033184,0.1698,2945.5,2944.1,0.485]
[1644701033384,0.00983666,2944.5,2944.2,0.0026388]
[1644701033584,0.00983666,2944.5,2944.1,0.485]
[1644701034219,0.1698,2945.5,2944.1,0.485]
[1644701034419,0.1698,2945.5,2944.2,0.68735331]
[1644701034620,0.00983675,2944.4,2944.3,0.0026388]
[1644701034820,0.00983675,2944.4,2944.2,0.68471451]
[1644701035423,0.1698,2945.5,2944.2,0.68471451]
[1644701035625,0.1698,2945.5,2944.3,0.0026388]
[1644701035826,0.00983675,2944.4,2944.3,0.0026388]
[1644701036024,0.00983675,2944.4,2944.2,0.68471451]
[1644701036825,0.1698,2945.5,2944.2,0.68471451]
[1644701037024,0.00983675,2944.4,2944.3,0.0026388]
[1644701037224,0.00983675,2944.4,2944.1,0.485]
[1644701037426,0.00983675,2944.4,2943.9,0.0026388]
[1644701037628,0.00983675,2944.4,2943.3,0.74484074]
[1644701037629,0.1698,2944.3,2943.7,0.0026388]
[1644701037874,0.1698,2944.3,2943.4,0.0026388]
[1644701038074,6.7,2944.8,2943.0,0.25]
[1644701038075,8.0561,2944.8,2943.0,0.25]
[1644701038278,0.00983725,2944.1,2943.8,0.59995547]
[1644701038477,0.00983725,2944.1,2943.9,0.0026388]
[1644701038674,0.00983725,2944.1,2943.3,0.00984024]
[1644701039074,3.6698,2944.4,2943.1,0.0026388]
[1644701039274,1.0,2944.3,2943.1,0.0026388]